bitfinex-derivatives/quotes_ETHF0:USTF0_20240904
["timestamp","ask_amount","ask_price","bid_price","bid_amount"]
[1725426284055,7.55009,2375.7,2375.6,0.00631406]
[1725426285857,8.60256,2375.7,2375.6,0.00631406]
[1725426286651,8.77926964,2375.7,2375.6,0.00631406]
[1725426288150,11.98706964,2375.7,2375.6,0.00631406]
[1725426289541,17.98706964,2375.7,2375.6,0.00631406]
[1725426289752,0.42108,2375.2,2375.1,0.7143]
[1725426289952,0.42109,2375.1,2375.0,1.3161]
[1725426294456,1.84458284,2375.2,2375.0,1.3161]
[1725426295445,5.05238284,2375.2,2375.0,1.3161]
[1725426295845,1.84458284,2375.2,2375.0,1.3161]
[1725426296857,1.42349284,2375.2,2375.0,1.3161]
[1725426297055,1.84457284,2375.2,2375.0,1.3161]
[1725426298550,0.42109,2375.1,2375.0,1.3161]
[1725426298748,1.84458284,2375.2,2375.0,1.3161]
[1725426299352,0.42109,2375.1,2375.0,1.3161]
[1725426300450,1.42349284,2375.2,2375.0,1.3161]
[1725426300451,0.63458284,2375.2,2375.0,1.3161]
[1725426303262,0.00631406,2375.3,2375.2,0.42108]
[1725426303463,0.00631406,2375.3,2375.2,4.63148]
[1725426303665,0.00631406,2375.3,2375.2,4.2104]
[1725426303852,0.00631406,2375.3,2375.2,4.63148]
[1725426304051,0.00631406,2375.3,2375.2,4.2104]
[1725426304254,0.00631406,2375.3,2375.2,4.63148]
[1725426304753,0.00631406,2375.3,2375.2,4.2104]
[1725426304965,0.00631406,2375.3,2375.2,0.42108]
[1725426307364,0.00631406,2375.3,2375.2,4.63148]
[1725426310463,0.59818515,2375.7,2375.5,0.42101]
[1725426310656,0.42097,2375.9,2375.6,1.2854]
[1725426310872,0.42097,2375.8,2375.7,0.42098]
[1725426311062,0.42096,2375.9,2375.7,0.42098]
[1725426311267,0.42096,2375.9,2375.7,0.42097]
[1725426311466,0.42097,2375.8,2375.6,1.70639]
[1725426312567,0.42098,2375.8,2375.6,1.70639]
[1725426313671,1.63096,2375.9,2375.7,0.6789]
[1725426313969,1.63096,2375.9,2375.7,1.09989]
[1725426314461,0.42096,2375.9,2375.7,1.09989]
[1725426315263,0.00416473,2376.0,2375.9,0.42095]
[1725426315765,4.35798,2376.4,2375.9,5.4188]
[1725426315766,0.42088,2376.3,2375.9,5.4188]
[1725426315961,0.42088,2376.3,2376.1,0.42092]
[1725426316167,0.42088,2376.3,2376.2,0.6414]
[1725426316366,0.42088,2376.3,2376.2,1.0623]
[1725426316566,0.42088,2376.3,2376.2,0.6414]
[1725426316877,0.42088,2376.3,2376.2,1.0623]
[1725426317673,4.117,2376.7,2376.2,9.2672]
[1725426317878,0.42083,2376.6,2376.4,1.63085]
[1725426318076,0.42083,2376.6,2376.5,0.6155]
[1725426318273,1.63083,2376.6,2376.5,0.6155]
[1725426319769,3.2078,2376.7,2376.5,1.03634]
[1725426320071,3.2078,2376.7,2376.5,0.6155]
[1725426320270,3.2078,2376.7,2376.6,0.6464]
[1725426320575,0.63601156,2376.8,2376.6,0.6464]
[1725426320776,0.42079,2376.9,2376.6,0.6464]
[1725426321074,0.42079,2376.8,2376.7,0.6208]
[1725426322876,0.42079,2376.8,2376.5,0.6155]
[1725426323078,0.42079,2376.9,2376.6,0.6383]
[1725426323277,0.42079,2376.9,2376.7,0.6536]
[1725426324171,0.42079,2376.8,2376.7,0.6536]
[1725426328878,0.42079,2376.8,2376.6,0.6383]
[1725426330487,0.42078,2376.9,2376.6,0.6383]
[1725426330688,0.42078,2376.9,2376.7,0.6226]
[1725426331584,0.42079,2376.8,2376.7,0.6226]
[1725426336479,4.74935963,2377.0,2376.7,1.04341]
[1725426336879,0.42077,2376.9,2376.7,1.04341]
[1725426339185,0.42078,2376.9,2376.7,1.04341]
[1725426339781,4.117,2377.0,2376.7,1.04341]
[1725426339782,0.42079,2376.8,2376.7,1.04341]
[1725426339987,0.42079,2376.9,2376.7,1.04341]
[1725426340289,0.42079,2376.8,2376.7,1.04341]
[1725426340787,0.42079,2376.8,2376.7,5.25061]
[1725426341291,0.42079,2376.9,2376.7,5.25061]
[1725426341519,0.42079,2376.9,2376.7,1.04341]
[1725426341981,0.42079,2376.8,2376.7,1.04341]
[1725426342487,0.42079,2376.8,2376.7,5.25061]
[1725426343083,0.42079,2376.9,2376.8,0.42079]
[1725426343478,0.42079,2376.8,2376.7,0.6226]
[1725426343785,1.47278,2376.8,2376.7,0.6226]
[1725426344286,0.42079,2376.8,2376.7,0.6226]
[1725426360404,1.05208,2376.6,2376.2,0.098]
[1725426360702,0.42089,2376.3,2376.1,1.8798]
[1725426360900,0.4209,2376.2,2376.1,1.8798]
[1725426361096,0.42089,2376.3,2376.1,1.8798]
[1725426361508,1.7192,2376.7,2376.1,3.0898]
[1725426361703,0.42083,2376.6,2376.1,3.0898]
[1725426361897,0.42083,2376.6,2376.3,0.42088]
[1725426362799,0.42085,2376.5,2376.3,0.42088]
[1725426363608,0.42085,2376.5,2376.2,0.42088]
[1725426365001,0.42086,2376.4,2376.2,0.42088]
[1725426367311,0.42088,2376.3,2376.1,3.51071]
[1725426367516,0.4209,2376.2,2376.1,1.8798]
[1725426367717,0.4209,2376.2,2376.1,2.43656592]
[1725426367908,0.4209,2376.2,2376.1,6.0886]
[1725426368515,0.4209,2376.2,2376.1,1.8798]
[1725426369014,1.47315,2376.2,2376.1,1.8798]
[1725426369209,1.05222,2376.3,2376.0,0.00631406]
[1725426369210,0.42092,2376.1,2376.0,0.00631406]
[1725426370715,1.47322,2376.1,2376.0,0.00631406]
[1725426370919,6.73432,2376.1,2376.0,0.00631406]
[1725426371112,0.42099,2375.7,2375.6,2.0518]
[1725426371421,0.42099,2375.7,2375.6,1.9538]
[1725426372113,0.63643335,2375.8,2375.6,1.9538]
[1725426372415,3.63507406,2375.9,2375.6,1.9538]
[1725426372915,3.84423203,2375.9,2375.6,1.9538]
[1725426373118,0.42098,2375.8,2375.6,1.9538]
[1725426378514,0.21547203,2375.9,2375.6,1.9538]
[1725426378720,0.42099,2375.7,2375.6,1.9538]
[1725426379222,0.42098,2375.8,2375.6,1.9538]
[1725426380924,0.42099,2375.7,2375.6,1.9538]
[1725426381424,0.42097,2375.8,2375.6,2.3748]
[1725426381720,0.42097,2375.8,2375.6,1.9538]
[1725426381925,0.42097,2375.8,2375.6,2.3748]
[1725426385331,0.42099,2375.7,2375.6,2.3748]
[1725426385727,0.42727406,2375.9,2375.7,0.42099]
[1725426385922,0.00631406,2375.9,2375.8,1.63097]
[1725426386927,0.00631406,2375.9,2375.8,4.83877]
[1725426388136,0.42726406,2375.9,2375.8,3.2078]
[1725426388432,0.42099,2375.7,2375.6,1.9538]
[1725426393628,0.42099,2375.7,2375.4,0.00631406]
[1725426393629,0.42102,2375.5,2375.4,0.00631406]
[1725426393835,2.68358,2375.5,2375.4,0.00631406]
[1725426394032,6.89318,2375.5,2375.4,0.00631406]
[1725426394923,5.84062,2375.5,2375.4,0.00631406]
[1725426395354,4.63062,2375.5,2375.4,0.00631406]
[1725426397833,4.80881529,2375.5,2375.4,0.00631406]
[1725426398037,0.59921529,2375.5,2375.4,0.00631406]
[1725426401528,0.42102,2375.5,2375.4,0.00631406]
[1725426401736,0.421,2375.7,2375.4,0.42735406]
[1725426401934,0.40080241,2375.9,2375.5,1.9527]
[1725426402439,0.42099,2375.7,2375.5,1.9527]
[1725426406938,0.421,2375.6,2375.5,1.9527]
[1725426407537,0.421,2375.7,2375.5,1.9527]
[1725426408134,1.21,2375.8,2375.5,1.9527]
[1725426408346,0.42099,2375.7,2375.5,1.9527]
[1725426409441,0.421,2375.6,2375.5,1.9527]
[1725426414748,4.68132,2375.6,2375.5,1.9527]
[1725426414952,1.47358,2375.5,2375.4,0.00631406]
[1725426415147,1.98098,2375.5,2375.4,0.00631406]
[1725426415349,6.19058,2375.5,2375.4,0.00631406]
[1725426418145,5.68318,2375.5,2375.4,0.00631406]
[1725426420650,4.2096,2375.5,2375.4,0.00631406]
[1725426420847,2.26245,2375.8,2375.4,0.00631406]
[1725426421253,0.42102,2375.6,2375.4,0.00631406]
[1725426421451,0.42102,2375.5,2375.4,0.00631406]
[1725426429155,1.47358,2375.5,2375.4,0.00631406]
[1725426429363,5.68318,2375.5,2375.4,0.00631406]
[1725426429555,6.89318,2375.5,2375.4,0.00631406]
[1725426430358,7.94574,2375.5,2375.4,0.00631406]
[1725426431154,1.47378,2375.2,2375.1,1.3222]
[1725426431360,0.42112,2375.0,2374.7,0.7567]
[1725426431568,0.42112,2375.0,2374.7,5.2062]
[1725426432958,0.42115,2374.8,2374.7,5.2062]
[1725426433160,0.42115,2374.8,2374.7,1.9984]
[1725426433666,5.47063,2374.9,2374.6,0.00631406]
[1725426433667,1.47408,2374.7,2374.6,0.00631406]
[1725426433851,2.68408,2374.7,2374.6,0.00631406]
[1725426434055,6.89528,2374.7,2374.6,0.00631406]
[1725426434472,7.10566196,2374.7,2374.6,0.00631406]
[1725426435768,6.05274196,2374.7,2374.6,0.00631406]
[1725426435967,1.84154196,2374.7,2374.6,0.00631406]
[1725426436155,6.05274196,2374.7,2374.6,0.00631406]
[1725426436653,1.84154196,2374.7,2374.6,0.00631406]
[1725426436862,6.05274196,2374.7,2374.6,0.00631406]
[1725426437263,1.84154196,2374.7,2374.6,0.00631406]
[1725426437467,6.05274196,2374.7,2374.6,0.00631406]
[1725426437668,1.84154196,2374.7,2374.6,0.00631406]
[1725426437865,6.05274196,2374.7,2374.6,0.00631406]
[1725426438071,1.84154196,2374.7,2374.6,0.00631406]
[1725426438367,6.05274196,2374.7,2374.6,0.00631406]
[1725426438966,0.21038196,2374.7,2374.6,0.00631406]
[1725426439457,0.42115,2374.8,2374.6,0.00631406]
[1725426439658,0.63012893,2374.7,2374.6,0.00631406]
[1725426439862,1.84012893,2374.7,2374.6,0.00631406]
[1725426440261,1.41896893,2374.7,2374.6,0.00631406]
[1725426440572,1.84012893,2374.7,2374.6,0.00631406]
[1725426440873,1.21,2374.7,2374.6,0.00631406]
[1725426442477,1.63116,2374.7,2374.6,0.00631406]
[1725426444279,3.2078,2374.9,2374.7,0.42115]
[1725426444280,0.42113,2374.9,2374.7,0.42115]
[1725426444586,0.42113,2374.9,2374.8,1.9087]
[1725426445978,1.63112,2375.0,2374.8,1.9087]
[1725426446372,0.42113,2374.9,2374.8,1.9087]
[1725426446573,4.68176,2374.9,2374.8,0.6241]
[1725426446875,0.42116,2374.7,2374.6,0.00631406]
[1725426447178,1.84035893,2374.7,2374.6,0.00631406]
[1725426447973,2.89327893,2374.7,2374.6,0.00631406]
[1725426448173,7.10447893,2374.7,2374.6,0.00631406]
[1725426449077,2.89327893,2374.7,2374.6,0.00631406]
[1725426449273,0.42125,2374.2,2374.1,1.2441]
[1725426449469,1.21,2374.2,2374.1,1.9113]
[1725426449872,1.21,2374.3,2374.1,1.9113]
[1725426450074,0.4212,2374.5,2374.1,5.54036]
[1725426450280,1.63751406,2374.5,2374.1,5.54667406]
[1725426451179,1.21631406,2374.5,2374.1,5.12541406]
[1725426451382,1.21631406,2374.5,2374.2,0.42124]
[1725426451890,1.63751406,2374.5,2374.1,5.12541406]
[1725426452087,0.42124,2374.3,2374.1,5.12541406]
[1725426452279,1.63123,2374.4,2374.1,5.12541406]
[1725426452786,1.63123,2374.4,2374.1,5.54668406]
[1725426453285,0.42123,2374.4,2374.1,5.54668406]
[1725426453584,1.21631406,2374.5,2374.2,0.42124]
[1725426453585,1.63752406,2374.5,2374.2,0.42124]
[1725426453783,0.00631406,2374.5,2374.3,0.42123]
[1725426453984,0.00631406,2374.5,2374.4,1.04542]
[1725426456180,0.00631406,2374.5,2374.4,0.6242]
[1725426456181,0.42751406,2374.5,2374.4,0.6242]
[1725426456380,0.00631406,2374.5,2374.4,1.04542]
[1725426456994,0.00631406,2374.5,2374.4,8.46442]
[1725426457295,0.00631406,2374.5,2374.4,9.67442]
[1725426457486,4.117,2374.6,2374.5,0.4212]
[1725426457789,4.117,2374.6,2374.5,5.2502]
[1725426459084,0.42116,2374.7,2374.6,0.42118]
[1725426460490,0.42747406,2374.8,2374.6,4.2112]
[1725426460692,0.42747406,2374.8,2374.7,1.03826]
[1725426460995,0.00631406,2374.8,2374.7,2.24826]
[1725426461191,0.00631406,2374.8,2374.7,13.51238]
[1725426461395,0.098,2375.2,2375.1,0.42109]
[1725426461594,0.42103,2375.5,2375.3,0.42105]
[1725426461796,1.308,2375.6,2375.2,0.42106]
[1725426461797,0.42104,2375.4,2375.2,0.42106]
[1725426462398,0.42104,2375.4,2375.1,4.4178]
[1725426462399,0.42734406,2375.5,2375.3,0.42106]
[1725426462594,0.42734406,2375.5,2375.4,0.6612]
[1725426465101,0.00631406,2375.5,2375.4,1.08224]
[1725426465911,0.00631406,2375.5,2375.4,0.6612]
[1725426466506,0.00631406,2375.5,2375.4,1.08224]
[1725426466703,0.00631406,2375.5,2375.4,0.6612]
[1725426467011,0.00631406,2375.5,2375.4,1.08224]
[1725426467400,0.00631406,2375.5,2375.2,0.6515]
[1725426467606,0.42105,2375.4,2375.2,1.29]
[1725426469210,0.42735406,2375.5,2375.2,1.29]
[1725426469807,0.42735406,2375.5,2375.2,1.71107]
[1725426470014,0.42104,2375.4,2375.2,1.29]
[1725426470319,0.42735406,2375.5,2375.2,1.29]
[1725426470614,0.42735406,2375.5,2375.2,1.71107]
[1725426471005,0.42733406,2375.5,2375.2,1.29]
[1725426471207,0.00631406,2375.5,2375.2,1.29]
[1725426471607,0.00631406,2375.5,2375.4,0.42104]
[1725426471809,0.00631406,2375.5,2375.3,0.42104]
[1725426472213,0.00631406,2375.5,2375.4,0.6196]
[1725426472808,0.00631406,2375.5,2375.4,1.04064]
[1725426476315,0.42733406,2375.5,2375.4,0.6196]
[1725426477810,0.42733406,2375.5,2375.2,1.71106]
[1725426477811,0.42104,2375.4,2375.2,1.71106]
[1725426478018,0.42734406,2375.5,2375.3,0.6238]
[1725426479314,0.42104,2375.4,2375.3,0.6238]
[1725426480126,0.42104,2375.4,2375.2,1.29]
[1725426480422,0.42106,2375.3,2375.2,1.29]
[1725426480733,0.92956,2375.3,2375.1,3.2078]
[1725426480922,0.42108,2375.2,2375.1,3.2078]
[1725426484126,0.00631406,2375.5,2375.1,4.2104]
[1725426484314,0.00631406,2375.5,2375.3,0.42105]
[1725426484315,0.42734406,2375.5,2375.3,0.42105]
[1725426484621,0.00631406,2375.5,2375.4,0.42104]
[1725426488214,0.00631406,2375.5,2375.4,4.63064]
[1725426488422,0.00631406,2375.5,2375.4,7.54064]
[1725426489522,0.098,2376.1,2376.0,0.42093]
[1725426489523,0.51892,2376.1,2376.0,0.42093]
[1725426489722,0.42092,2376.1,2376.0,3.62873]
[1725426489924,0.42092,2376.1,2376.0,3.2078]
[1725426490620,0.5086,2376.3,2376.0,3.2078]
[1725426490822,0.42091,2376.2,2376.0,3.2078]
[1725426491024,0.42091,2376.2,2376.1,0.6152]
[1725426491830,0.42089,2376.3,2376.1,0.6152]
[1725426492221,0.42088,2376.4,2376.1,0.6152]
[1725426492419,0.42088,2376.4,2376.2,1.3413]
[1725426492619,5.04646,2376.5,2376.2,0.6731]
[1725426492822,0.42086,2376.4,2376.2,0.6731]
[1725426493049,4.6256,2376.5,2376.2,0.6731]
[1725426493217,0.42087,2376.4,2376.2,0.6731]
[1725426493629,4.6256,2376.5,2376.2,0.6731]
[1725426493830,7.52117488,2376.6,2376.3,2.91]
[1725426493831,3.2078,2376.6,2376.3,2.91]
[1725426494129,3.2078,2376.6,2376.5,3.33084]
[1725426494321,4.117,2377.0,2376.9,0.42077]
[1725426494526,6.918,2377.2,2376.8,3.33079]
[1725426494527,0.42073,2377.2,2376.8,3.33079]
[1725426494827,0.20673342,2377.2,2376.9,0.6766]
[1725426495029,3.62851,2377.3,2376.9,0.6766]
[1725426495733,3.83551724,2377.3,2376.9,0.6766]
[1725426496028,3.83551724,2377.3,2376.9,1.09737]
[1725426496029,3.41480724,2377.3,2376.9,1.09737]
[1725426496333,3.41480724,2377.3,2377.0,0.62]
[1725426498728,0.20700724,2377.3,2377.0,0.62]
[1725426499230,3.2078,2377.4,2377.3,0.4207]
[1725426499440,0.098,2378.0,2377.6,0.42064]
[1725426499736,0.20560141,2378.1,2377.8,0.42061]
[1725426499935,0.20560141,2378.1,2377.7,0.6281]
[1725426500128,0.5079,2378.2,2378.0,0.42057]
[1725426500324,3.2078,2378.3,2378.2,0.42054]
[1725426500528,0.92836,2378.7,2378.2,3.33054]
[1725426500726,4.117,2378.8,2378.4,0.4205]
[1725426500936,3.2078,2378.8,2378.5,0.42049]
[1725426501129,3.2078,2378.8,2378.4,6.12411406]
[1725426501438,1.0287,2379.0,2378.5,3.62828]
[1725426501629,1.0287,2379.0,2378.5,0.42048]
[1725426501829,3.2078,2378.9,2378.5,0.42048]
[1725426502432,3.62822,2378.9,2378.5,0.42048]
[1725426502626,3.62822,2378.9,2378.4,3.33681406]
[1725426503432,3.2078,2378.9,2378.5,0.42049]
[1725426506532,0.5079,2379.2,2378.7,3.2078]
[1725426506733,3.2078,2379.3,2378.9,0.42042]
[1725426507138,3.2078,2379.3,2379.0,0.4204]
[1725426507327,4.117,2379.4,2379.0,2.91]
[1725426507531,0.098,2379.8,2379.5,0.42031]
[1725426507732,0.20894417,2379.8,2379.4,3.62812]
[1725426507940,0.20894417,2379.8,2379.4,3.33032]
[1725426508236,5.2315,2380.0,2379.5,0.4203]
[1725426508237,5.65174,2380.0,2379.5,0.4203]
[1725426508440,4.117,2380.0,2379.6,3.33028]
[1725426508640,4.117,2380.0,2379.7,0.42028]
[1725426509739,3.2078,2380.1,2379.8,3.33025]
[1725426510643,3.2078,2380.1,2379.6,0.00631406]
[1725426510845,3.62802,2380.1,2379.6,0.42660406]
[1725426514741,3.2078,2380.1,2379.7,0.42028]
[1725426518352,3.2078,2380.1,2379.8,0.42026]
[1725426521053,3.2078,2380.1,2379.8,0.42025]
[1725426521551,3.2078,2380.1,2379.7,3.2078]
[1725426521552,3.2078,2380.1,2379.9,0.42024]
[1725426521749,3.2078,2380.1,2379.8,0.42025]
[1725426522450,3.2078,2380.1,2379.7,3.62807]
[1725426522653,3.2078,2380.1,2379.7,3.2078]
[1725426522849,3.2078,2380.1,2379.8,0.42025]
[1725426523765,3.2078,2380.1,2379.9,0.42024]
[1725426524546,3.2078,2380.1,2379.7,3.2078]
[1725426524547,3.2078,2380.1,2379.8,0.42025]
[1725426525057,3.2078,2380.1,2379.7,3.2078]
[1725426525058,3.2078,2380.1,2379.9,0.42024]
[1725426525647,4.34681089,2380.3,2379.9,0.42024]
[1725426527041,3.92663089,2380.3,2379.9,0.42024]
[1725426527247,3.92663089,2380.3,2380.0,0.42022]
[1725426528149,3.92663089,2380.3,2379.7,3.8487]
[1725426528352,3.92663089,2380.3,2380.1,0.42021]
[1725426528544,3.92663089,2380.3,2379.8,2.91]
[1725426528745,3.92663089,2380.3,2380.0,0.42021]
[1725426529456,3.92663089,2380.3,2380.1,0.42021]
[1725426530053,3.92663089,2380.3,2380.0,0.42022]
[1725426530452,3.92663089,2380.3,2380.1,0.42021]
[1725426531453,3.92663089,2380.3,2379.9,0.6319]
[1725426531757,3.92663089,2380.3,2380.1,0.4202]
[1725426532251,0.71883089,2380.3,2380.2,0.42019]
[1725426532552,0.20869155,2380.5,2380.4,0.42016]
[1725426532755,11.02439002,2380.9,2380.6,0.42012]
[1725426532950,10.842,2380.9,2380.3,4.4868]
[1725426533157,10.842,2380.9,2380.6,0.42011]
[1725426533343,11.0519738,2380.9,2380.6,0.42011]
[1725426533549,11.4720438,2380.9,2380.6,0.42011]
[1725426533853,11.4720438,2380.9,2380.5,0.42013]
[1725426534053,11.4720438,2380.9,2380.3,4.4868]
[1725426534054,11.4720538,2380.9,2380.6,0.42012]
[1725426534453,0.42009,2380.8,2380.5,0.42013]
[1725426534656,11.4720538,2380.9,2380.5,0.42013]
[1725426534955,11.4720538,2380.9,2380.6,0.42011]
[1725426534956,6.9349738,2380.9,2380.6,0.42011]
[1725426535156,7.3550438,2380.9,2380.6,0.42011]
[1725426535556,6.9349738,2380.9,2380.6,0.42011]
[1725426536260,4.0249738,2380.9,2380.4,3.2078]
[1725426536562,4.0249738,2380.9,2380.6,0.42011]
[1725426537559,3.4177738,2380.9,2380.7,0.4201]
[1725426537761,6.3277738,2380.9,2380.4,3.2078]
[1725426538058,0.4201,2380.8,2380.4,0.42015]
[1725426538259,0.42011,2380.7,2380.4,0.42015]
[1725426538460,0.92651,2380.7,2380.4,0.42015]
[1725426538851,0.92651,2380.7,2380.3,1.279]
[1725426539057,0.92651,2380.7,2380.4,0.42015]
[1725426539568,3.2078,2380.6,2380.4,0.42015]
[1725426539956,3.62792,2380.6,2380.3,1.69916]
[1725426540155,3.2078,2380.6,2380.1,3.84]
[1725426540359,0.6069,2380.5,2380.1,3.84]
[1725426540660,3.2078,2380.6,2380.1,3.84]
[1725426540862,0.92652,2380.7,2380.4,0.42015]
[1725426541051,4.0246738,2380.9,2380.6,0.42011]
[1725426541258,4.0246738,2380.9,2380.5,0.42012]
[1725426541457,0.42011,2380.7,2380.5,0.42012]
[1725426542458,0.42011,2380.7,2380.4,1.09284]
[1725426542459,3.2078,2380.6,2380.4,1.09284]
[1725426542663,3.62793,2380.6,2380.4,1.09284]
[1725426543862,3.2078,2380.6,2380.4,1.09284]
[1725426544363,3.62792,2380.6,2380.4,0.6727]
[1725426544670,0.42012,2380.6,2380.4,1.09285]
[1725426545257,0.42011,2380.7,2380.5,0.42014]
[1725426545756,0.4201,2380.8,2380.5,0.42014]
[1725426545961,0.4201,2380.7,2380.5,0.42014]
[1725426546361,0.4201,2380.8,2380.6,0.42012]
[1725426546660,1.26328642,2380.9,2380.4,3.5827]
[1725426546865,3.96031,2380.6,2380.1,3.84]
[1725426547064,0.42019,2380.2,2380.1,3.2078]
[1725426547867,0.42018,2380.3,2380.1,3.2078]
[1725426548157,0.42017,2380.4,2380.1,3.2078]
[1725426548361,0.42017,2380.4,2380.1,3.8237]
[1725426548757,0.42019,2380.2,2380.1,3.8237]
[1725426549566,0.42019,2380.2,2380.1,3.2078]
[1725426553677,1.47067,2380.2,2380.1,3.2078]
[1725426553972,1.47067,2380.2,2379.5,0.6269]
[1725426553973,1.47099,2379.7,2379.5,0.6269]
[1725426554170,1.47099,2379.7,2379.2,3.8585]
[1725426554367,1.47099,2379.7,2379.2,4.4854]
[1725426554968,0.42028,2379.7,2379.2,4.4854]
[1725426555572,0.42028,2379.7,2379.3,3.33034]
[1725426555769,0.42028,2379.7,2379.3,2.91]
[1725426556972,0.42028,2379.7,2379.2,4.90576]
[1725426557371,0.42028,2379.7,2379.3,0.42035]
[1725426558381,11.79146,2380.1,2379.4,0.42033]
[1725426558575,0.42027,2379.8,2379.5,0.6633]
[1725426558975,0.42027,2379.8,2379.6,0.65741406]
[1725426559182,0.42027,2379.8,2379.7,0.6822]
[1725426559982,0.42024,2380.0,2379.7,4.8846]
[1725426560177,0.42024,2380.0,2379.7,0.6822]
[1725426561084,0.42024,2380.0,2379.7,1.10247]
[1725426561484,7.74502,2380.1,2379.8,0.42026]
[1725426561673,4.53722,2380.1,2379.8,0.42026]
[1725426561874,7.74502,2380.1,2379.8,0.42026]
[1725426562380,0.42023,2380.0,2379.7,4.01247]
[1725426563581,0.42025,2379.9,2379.7,4.01247]
[1725426563782,0.42024,2380.0,2379.7,4.01247]
[1725426564477,3.2078,2380.1,2379.7,4.01247]
[1725426564478,0.42025,2379.9,2379.7,4.01247]
[1725426564683,0.42023,2380.0,2379.8,0.42025]
[1725426565281,0.42023,2380.0,2379.8,0.42026]
[1725426565586,0.42024,2379.9,2379.7,4.01247]
[1725426566186,4.25834,2380.1,2379.7,4.01247]
[1725426566392,4.25834,2380.1,2379.8,0.42026]
[1725426566690,0.42024,2380.0,2379.8,0.42026]
[1725426567081,4.117,2380.4,2379.7,3.5922]
[1725426567285,0.42019,2380.3,2380.1,0.42021]
[1725426567478,0.42019,2380.3,2380.2,1.9318]
[1725426567675,1.47063,2380.3,2380.2,1.9318]
[1725426567880,1.47063,2380.3,2380.2,1.2935]
[1725426569492,1.47063,2380.3,2380.2,0.6772]
[1725426576005,0.42021,2380.1,2379.9,0.42024]
[1725426576204,1.05081,2379.5,2379.3,0.00731406]
[1725426576395,1.05081,2379.5,2379.0,0.672]
[1725426576396,0.42039,2379.1,2379.0,0.672]
[1725426578000,3.62817,2379.2,2379.0,0.672]
[1725426578201,0.00626898,2379.3,2379.0,0.672]
[1725426578402,0.42663898,2379.3,2379.0,0.672]
[1725426578805,0.00626898,2379.3,2379.0,0.672]
[1725426579011,0.42037,2379.2,2379.0,0.672]
[1725426581312,0.00626898,2379.3,2379.0,7.7852]
[1725426581504,0.00626898,2379.3,2379.1,0.42038]
[1725426582599,0.42661898,2379.3,2379.0,4.00239]
[1725426583802,0.42661898,2379.3,2379.1,0.42038]
[1725426584514,0.00626898,2379.3,2379.1,0.42038]
[1725426584707,0.42662898,2379.3,2379.1,0.42038]
[1725426586913,0.00626898,2379.3,2379.2,4.62357]
[1725426587309,0.00626898,2379.3,2379.2,10.62357]
[1725426587510,3.2078,2379.5,2379.4,0.42033]
[1725426587711,0.42027,2379.8,2379.6,0.42028]
[1725426588013,0.42026,2379.9,2379.7,0.6457]
[1725426588325,0.42026,2379.9,2379.7,1.06596]
[1725426588619,0.42026,2379.9,2379.7,1.06597]
[1725426588811,0.42026,2379.9,2379.8,0.42026]
[1725426589014,0.42023,2380.0,2379.8,0.42026]
[1725426589811,0.42023,2380.0,2379.8,0.42025]
[1725426590210,0.42023,2380.0,2379.9,0.42024]
[1725426590919,0.42023,2380.0,2379.8,1.71465]
[1725426591113,0.42023,2380.0,2379.9,0.42024]
[1725426592015,0.42023,2380.0,2379.8,1.71465]
[1725426593812,3.2078,2380.1,2380.0,0.42023]
[1725426594021,0.42017,2380.4,2380.2,0.42019]
[1725426594222,0.42017,2380.4,2380.3,1.3073]
[1725426596215,0.42017,2380.4,2380.3,1.72747]
[1725426596424,0.42017,2380.4,2380.3,1.3073]
[1725426596726,0.42014,2380.5,2380.3,1.72746]
[1725426599413,0.42014,2380.5,2380.4,0.42016]
[1725426599618,0.42014,2380.5,2380.3,1.72746]
[1725426600216,0.42016,2380.4,2380.3,1.72746]
[1725426600426,0.42015,2380.5,2380.3,1.72746]
[1725426601130,0.42015,2380.5,2380.4,0.42016]
[1725426601430,0.42015,2380.5,2380.3,1.72746]
[1725426602121,0.42016,2380.4,2380.3,1.72746]
[1725426602323,0.42016,2380.4,2380.3,1.3073]
[1725426603131,0.42015,2380.5,2380.3,1.72747]
[1725426603330,0.641,2380.6,2380.3,1.72747]
[1725426603731,0.42015,2380.5,2380.3,1.72747]
[1725426603930,0.42015,2380.5,2380.3,1.3073]
[1725426604234,0.42015,2380.5,2380.3,1.72746]
[1725426605333,0.42016,2380.4,2380.3,1.72746]
[1725426609446,3.8488,2380.6,2380.3,1.3073]
[1725426609645,0.42015,2380.5,2380.4,0.42016]
[1725426611938,0.42016,2380.4,2380.3,1.72746]
[1725426612140,0.42016,2380.4,2380.3,1.3073]
[1725426613044,0.42016,2380.4,2380.3,1.72747]
[1725426613339,0.42016,2380.4,2380.3,1.3073]
[1725426614644,0.42015,2380.5,2380.3,1.72747]
[1725426615044,3.8488,2380.6,2380.3,1.3073]
[1725426615744,0.42015,2380.5,2380.3,1.72746]
[1725426616339,0.42015,2380.5,2380.3,1.3073]
[1725426616541,0.42015,2380.5,2380.3,1.72746]
[1725426617046,0.42015,2380.5,2380.4,0.42016]
[1725426617438,0.42016,2380.4,2380.3,1.72746]
[1725426617943,0.42015,2380.5,2380.4,0.42015]
[1725426618843,3.8488,2380.6,2380.3,1.3073]
[1725426618844,0.42016,2380.4,2380.3,1.72746]
[1725426619350,8.0772,2380.9,2380.3,1.72746]
[1725426619351,3.62786,2381.0,2380.8,0.42007]
[1725426619558,3.62786,2381.0,2380.5,1.05035]
[1725426619559,0.42005,2381.1,2380.9,1.69427]
[1725426619851,0.42005,2381.1,2380.9,1.69425]
[1725426620048,0.42005,2381.1,2380.9,2.4842]
[1725426620245,0.42002,2381.2,2381.0,0.42004]